bitfinex-derivatives/quotes_SOLF0:USTF0_20250221
["timestamp","ask_amount","ask_price","bid_price","bid_amount"]
[1740179736163,0.03779964,168.69,168.65,0.04139108]
[1740179736467,15.22901838,168.66,168.51,1.8315]
[1740179736668,15.22901838,168.66,168.51,5.3667]
[1740179736866,5.934,168.6,168.55,5.9357]
[1740179737367,15.22901838,168.66,168.57,5.9348]
[1740179737569,0.04323253,168.59,168.57,5.9348]
[1740179737768,6.81,168.67,168.53,15.22901838]
[1740179738004,0.03789391,168.6,168.59,5.9341]
[1740179738200,5.9323,168.65,168.59,5.9341]
[1740179738402,0.04108079,168.61,168.59,5.9341]
[1740179740670,0.04108079,168.61,168.6,5.934]
[1740179746494,6.81,168.67,168.59,15.22901838]
[1740179746801,6.81,168.67,168.64,5.9325]
[1740179747298,7.775,168.7,168.64,5.9325]
[1740179747892,0.03983056,168.69,168.65,0.03927818]
[1740179749183,0.03983056,168.69,168.65,5.97127818]
[1740179749370,0.03983056,168.69,168.65,0.03927818]
[1740179750275,5.9316,168.67,168.65,0.03927818]
[1740179750477,0.03983056,168.69,168.65,0.03927818]
[1740179751578,5.97093056,168.69,168.65,5.97127818]
[1740179752376,0.03983056,168.69,168.65,0.03927818]
[1740179752774,5.9319,168.66,168.65,0.03927818]
[1740179753078,0.03983056,168.69,168.55,7.9]
[1740179753278,5.9329,168.64,168.6,5.9337]
[1740179753877,15.22901838,168.69,168.53,89.30665346]
[1740179754077,0.04092428,168.64,168.6,0.04352935]
[1740179754281,0.04092428,168.64,168.53,74.07763508]
[1740179754474,5.9347,168.58,168.54,5.936]
[1740179755383,5.97542826,168.58,168.54,5.97474876]
[1740179755781,5.97542826,168.58,168.54,0.03874876]
[1740179755981,0.04072826,168.58,168.54,0.03874876]
[1740179756580,5.97542826,168.58,168.54,0.03874876]
[1740179757779,5.9358,168.55,168.54,0.03874876]
[1740179758585,1.8383,168.57,168.47,126.88]
[1740179758985,1.8383,168.57,168.47,132.8185]
[1740179759279,1.8383,168.57,168.47,126.88]
[1740179759486,1.8385,168.56,168.52,5.9368]
[1740179759787,1.88174922,168.56,168.52,5.98198766]
[1740179759986,0.04324922,168.56,168.52,5.98198766]
[1740179760286,0.04324922,168.56,168.54,5.936]
[1740179760486,0.04324922,168.56,168.52,0.04518766]
[1740179761088,0.04324922,168.56,168.47,126.88]
[1740179761288,5.9371,168.52,168.47,132.8185]
[1740179761488,1.8053,168.55,168.47,126.88]
[1740179762285,0.04277594,168.53,168.49,0.04227508]
[1740179764090,5.97947594,168.53,168.49,0.04227508]
[1740179764293,0.04277594,168.53,168.49,0.04227508]
[1740179764496,5.937,168.52,168.49,0.04227508]
[1740179765194,1.8385,168.61,168.49,0.04227508]
[1740179765195,15.22901838,168.69,168.5,15.22901838]
[1740179765391,15.22901838,168.63,168.48,7.9]
[1740179765594,5.9353,168.57,168.5,5.9374]
[1740179766393,0.04577,168.55,168.52,0.044243]
[1740179768094,0.04577,168.55,168.52,5.980943]
[1740179768688,0.04577,168.55,168.52,0.044243]
[1740179769290,0.04577,168.55,168.53,5.9361]
[1740179769695,0.04577,168.55,168.52,0.044243]
[1740179769899,0.04577,168.55,168.53,5.9362]
[1740179771594,0.04577,168.55,168.52,0.044243]
[1740179772799,5.9363,168.54,168.52,0.044243]
[1740179773197,5.9365,168.53,168.52,0.044243]
[1740179773499,15.27478838,168.55,168.43,74.11695183]
[1740179773700,1.7891,168.52,168.43,74.11695183]
[1740179774200,9.7803,168.57,168.43,74.11695183]
[1740179774400,0.04098538,168.49,168.46,0.04109036]
[1740179774700,5.9361,168.54,168.43,74.11695183]
[1740179774896,5.9361,168.54,168.46,0.03816721]
[1740179774897,0.03952545,168.49,168.46,0.03816721]
[1740179775200,0.03952545,168.49,168.47,5.9386]
[1740179775493,0.03952545,168.49,168.46,0.03816721]
[1740179779406,0.03952545,168.49,168.48,5.9382]
[1740179780501,5.4286,168.57,168.46,15.26718559]
[1740179780805,1.7299,168.61,168.56,5.9354]
[1740179781706,0.0411631,168.6,168.57,0.04493294]
[1740179786097,5.9347,168.58,168.57,0.04493294]
[1740179786303,3.5108,168.59,168.47,16.98811838]
[1740179786503,5.9357,168.56,168.51,5.9371]
[1740179787004,5.9357,168.56,168.47,16.98811838]
[1740179787507,0.03904462,168.53,168.5,0.04135264]
[1740179794611,5.9372,168.51,168.5,0.04135264]
[1740179795614,5.9386,168.47,168.43,5.9397]
[1740179795809,5.9386,168.47,168.42,2.62711319]
[1740179795810,5.9386,168.47,168.42,8.56721319]
[1740179796715,0.04315049,168.46,168.43,0.04542402]
[1740179797017,0.04315049,168.46,168.43,5.98532402]
[1740179798516,0.04315049,168.46,168.43,0.04542402]
[1740179801222,0.04315049,168.46,168.43,5.98532402]
[1740179802918,0.04315049,168.46,168.44,5.9396]
[1740179803219,15.22901838,168.45,168.34,74.14209923]
[1740179803423,15.22901838,168.45,168.37,5.9418]
[1740179803625,16.97491838,168.45,168.37,5.9418]
[1740179803819,5.9402,168.43,168.37,5.9418]
[1740179804125,5.9402,168.43,168.37,5.942]
[1740179804321,5.9402,168.43,168.34,74.14209923]
[1740179804523,0.04036609,168.42,168.38,5.98355506]
[1740179804822,0.04036609,168.42,168.38,0.04215506]
[1740179805324,5.98086609,168.42,168.38,0.04215506]
[1740179805863,0.04036609,168.42,168.38,0.04215506]
[1740179806114,5.9409,168.41,168.38,0.04215506]
[1740179808647,5.9411,168.4,168.38,0.04215506]
[1740179809241,5.9414,168.39,168.38,0.04215506]
[1740179810138,5.9411,168.4,168.38,0.04215506]
[1740179810337,0.04036609,168.42,168.38,0.04215506]
[1740179810839,5.9414,168.39,168.38,0.04215506]
[1740179812424,0.04036609,168.42,168.25,127.06]
[1740179812425,15.22901838,168.4,168.29,1.8119]
[1740179813129,15.22901838,168.4,168.26,1.8565]
[1740179813328,15.22901838,168.37,168.26,1.8565]
[1740179813628,5.9432,168.34,168.33,0.04285908]
[1740179814425,5.9432,168.34,168.28,5.9452]
[1740179814631,1.8533,168.36,168.25,127.06]
[1740179814831,1.7727,168.35,168.25,127.06]
[1740179815031,1.7727,168.35,168.26,5.9459]
[1740179815428,5.9444,168.31,168.26,5.9459]
[1740179815630,5.9444,168.31,168.29,0.032485]
[1740179816327,0.04369965,168.33,168.29,5.977385]
[1740179820236,0.04369965,168.33,168.29,0.032485]
[1740179820438,0.04369965,168.33,168.32,5.9439]
[1740179820640,0.04369965,168.33,168.29,0.032485]
[1740179820938,0.04369965,168.33,168.3,5.9443]
[1740179821834,0.04369965,168.33,168.31,5.9442]
[1740179822533,0.04369965,168.33,168.29,0.032485]
[1740179822837,0.04369965,168.33,168.29,5.977285]
[1740179823037,0.04369965,168.33,168.29,0.032485]
[1740179823237,5.98719965,168.33,168.29,0.032485]
[1740179824935,0.04369965,168.33,168.29,0.032485]
[1740179825542,1.92189965,168.33,168.29,0.032485]
[1740179825842,5.9446,168.3,168.29,0.032485]
[1740179826040,1.92189965,168.33,168.13,20.11939353]
[1740179826340,1.8782,168.33,168.17,3.6952]
[1740179826541,1.8782,168.33,168.19,15.22901838]
[1740179827243,0.03902718,168.28,168.19,15.22901838]
[1740179827441,0.03902718,168.28,168.25,5.9461]
[1740179827846,0.03902718,168.28,168.19,15.22901838]
[1740179828745,199.9429,168.35,168.22,15.22901838]
[1740179828948,5.9429,168.35,168.22,15.22901838]
[1740179829446,5.9429,168.35,168.28,5.9451]
[1740179829845,0.04224893,168.33,168.3,0.03902718]
[1740179831144,5.9442,168.31,168.3,0.03902718]
[1740179833246,5.9456,168.27,168.24,5.9466]
[1740179834042,5.9454,168.28,168.21,0.59614755]
[1740179834344,0.03839029,168.26,168.21,0.59614755]
[1740179835650,0.03839029,168.26,168.22,5.9472]
[1740179836050,0.03839029,168.26,168.21,0.59614755]
[1740179836247,0.03839029,168.26,168.23,5.947]
[1740179836446,0.03839029,168.26,168.21,0.59614755]
[1740179836951,0.03839029,168.26,168.22,5.9473]
[1740179837153,0.03839029,168.26,168.21,0.59614755]
[1740179838853,5.9469,168.24,168.21,0.59614755]
[1740179839242,5.9469,168.24,168.16,74.85904697]
[1740179839453,15.22901838,168.28,168.18,5.9485]
[1740179839653,0.03789996,168.22,168.16,74.85904697]
[1740179839948,0.03789996,168.22,168.16,73.02014697]
[1740179840150,0.03789996,168.22,168.14,127.12]
[1740179840648,5.9489,168.18,168.14,127.12]
[1740179841056,0.04224593,168.18,168.14,127.12]
[1740179843558,0.04224593,168.18,168.15,5.9497]
[1740179844455,0.04224593,168.18,168.14,133.07]
[1740179845953,0.04224593,168.18,168.14,127.12]
[1740179848256,0.04224593,168.18,168.14,133.07]
[1740179849063,0.04224593,168.18,168.09,1.7785]
[1740179849360,5.9496,168.16,168.11,5.9511]
[1740179849859,0.04224593,168.18,168.09,1.7785]
[1740179850057,15.22901838,168.22,168.09,1.7785]
[1740179850258,0.04565485,168.15,168.09,1.7785]
[1740179851158,0.04565485,168.15,168.11,5.9512]
[1740179852752,0.04565485,168.15,168.09,1.7785]
[1740179854459,0.04565485,168.15,168.11,5.9512]
[1740179856262,0.04565485,168.15,168.1,5.9515]
[1740179856756,5.9506,168.14,168.09,1.7785]
[1740179856953,0.04565485,168.15,168.07,1.8682]
[1740179857559,5.951,168.12,168.07,7.8207]
[1740179857860,0.04076786,168.11,168.07,7.8207]
[1740179858257,0.04076786,168.11,168.06,5.9528]
[1740179858456,0.04076786,168.11,168.03,201.50466548]
[1740179859358,0.04076786,168.11,168.07,5.9525]
[1740179859957,0.04076786,168.11,168.03,201.50466548]
[1740179860263,0.04076786,168.11,168.03,216.73368386]
[1740179860661,0.04076786,168.11,168.09,5.952]
[1740179862657,0.04076786,168.11,168.08,5.9523]
[1740179862855,0.04076786,168.11,168.03,201.50466548]
[1740179864059,3.5627,168.21,168.04,15.22901838]
[1740179864265,3.5627,168.21,168.13,5.9504]
[1740179864962,194.0,168.22,168.08,1.8899]
[1740179865158,194.0,168.22,168.15,5.9499]
[1740179865360,0.04168448,168.17,168.15,5.9499]
[1740179865558,0.04168448,168.17,168.1,15.22901838]
[1740179865762,0.04168448,168.17,168.12,0.04060432]
[1740179866483,0.04168448,168.17,168.15,5.9496]
[1740179867299,0.04168448,168.17,168.12,0.04060432]
[1740179867490,0.04168448,168.17,168.16,5.9495]
[1740179868482,0.04168448,168.17,168.13,1.8241]
[1740179870082,0.04168448,168.17,168.13,7.7745]
[1740179870285,0.04168448,168.17,168.13,1.8241]
[1740179872068,0.04168448,168.17,168.16,5.9495]
[1740179872363,3.5941,168.25,168.16,15.22901838]
[1740179872567,17.07621838,168.31,168.16,15.22901838]
[1740179872768,1.8828,168.3,168.16,15.22901838]
[1740179872969,5.9461,168.26,168.2,5.948]
[1740179873362,1.8828,168.3,168.16,15.22901838]
[1740179873559,0.04048249,168.25,168.21,0.04224389]
[1740179876162,5.98708249,168.25,168.21,0.04224389]
[1740179876666,0.04048249,168.25,168.21,0.04224389]
[1740179877572,5.9467,168.24,168.21,0.04224389]
[1740179881778,0.04048249,168.25,168.21,0.04224389]
[1740179882176,5.9474,168.22,168.21,0.04224389]
[1740179883172,0.04048249,168.25,168.21,0.04224389]
[1740179883173,5.9472,168.23,168.21,0.04224389]
[1740179886376,0.04048249,168.25,168.21,0.04224389]
[1740179886676,5.9469,168.24,168.21,0.04224389]
[1740179886974,0.04048249,168.25,168.21,0.04224389]
[1740179887977,5.9472,168.23,168.21,0.04224389]
[1740179888575,0.04048249,168.25,168.21,0.04224389]
[1740179889481,0.04048249,168.25,168.21,5.98984389]
[1740179889775,0.04048249,168.25,168.21,0.04224389]
[1740179891080,0.04048249,168.25,168.21,5.98974389]
[1740179891280,0.04048249,168.25,168.21,0.04224389]
[1740179893577,5.98698249,168.25,168.21,0.04224389]
[1740179893981,0.04048249,168.25,168.21,0.04224389]
[1740179894684,0.04048249,168.25,168.23,5.9468]
[1740179894885,0.04048249,168.25,168.21,0.04224389]
[1740179895179,0.04048249,168.25,168.24,5.9467]
[1740179895382,0.04048249,168.25,168.21,0.04224389]
[1740179895785,0.04048249,168.25,168.24,5.9467]
[1740179897574,8.94,168.31,168.22,15.22901838]
[1740179897782,8.94,168.31,168.23,1.8875]
[1740179898785,0.04439074,168.29,168.25,0.04081494]
[1740179899486,0.04439074,168.29,168.25,5.98691494]
[1740179899687,0.04439074,168.29,168.25,0.04081494]
[1740179900689,0.04439074,168.29,168.28,5.9453]
[1740179901479,0.04439074,168.29,168.25,15.26983332]
[1740179901678,0.04439074,168.29,168.27,5.9456]
[1740179902091,0.04439074,168.29,168.25,0.04081494]
[1740179903184,0.04439074,168.29,168.28,5.9453]
[1740179903390,5.9425,168.36,168.25,0.04081494]
[1740179903590,5.9425,168.36,168.24,9.6451]
[1740179903885,5.9425,168.36,168.3,5.9443]
[1740179904383,15.22901838,168.42,168.33,5.9435]
[1740179904790,5.9421,168.37,168.36,0.04060706]
[1740179905089,0.04102989,168.39,168.36,0.04060706]
[1740179905390,0.04102989,168.39,168.25,142.40901838]
[1740179905581,15.22901838,168.42,168.25,142.40901838]
[1740179906587,0.04465657,168.35,168.32,0.04388851]
[1740179906786,5.9425,168.36,168.3,5.9442]
[1740179906988,9.7656469,168.38,168.32,0.04493048]
[1740179906989,0.03791168,168.35,168.32,0.04493048]
[1740179907184,0.03791168,168.35,168.32,5.98853048]
[1740179907491,0.03791168,168.35,168.32,0.04493048]
[1740179908592,0.03791168,168.35,168.34,5.9432]
[1740179909591,0.03791168,168.35,168.33,5.9434]
[1740179910191,0.03791168,168.35,168.32,0.04493048]
[1740179910988,0.03791168,168.35,168.33,5.9434]
[1740179911697,0.03791168,168.35,168.32,0.04493048]
[1740179911998,0.03791168,168.35,168.33,5.9435]
[1740179912293,0.03791168,168.35,168.32,0.04493048]
[1740179912796,9.80355858,168.35,168.32,0.04493048]
[1740179913296,5.9434,168.34,168.32,0.04493048]
[1740179917997,5.98081168,168.35,168.32,0.04493048]
[1740179918496,0.03791168,168.35,168.32,0.04493048]
[1740179918699,5.9433,168.34,168.32,0.04493048]
[1740179918898,0.03791168,168.35,168.32,0.04493048]
[1740179919098,5.9432,168.34,168.32,0.04493048]
[1740179921705,5.9435,168.33,168.32,0.04493048]
[1740179922201,5.9442,168.31,168.3,0.2]
[1740179922403,15.30195419,168.35,168.25,127.18]
[1740179922599,15.26404251,168.32,168.24,74.19767633]
[1740179922798,5.9464,168.25,168.21,8.21849353]
[1740179922993,3.7693,168.31,168.22,5.9471]
[1740179923399,5.9462,168.26,168.25,0.04550267]
[1740179925408,0.04305003,168.28,168.19,32.87397412]
[1740179925608,15.26404251,168.29,168.19,32.87397412]
[1740179926008,5.9474,168.22,168.18,5.9488]
[1740179926400,15.26404251,168.29,168.16,3.6662]
[1740179926605,0.04226768,168.22,168.18,0.03628536]
[1740179926907,0.04226768,168.22,168.18,5.9486]
[1740179927107,0.04226768,168.22,168.18,0.03628536]
[1740179929609,0.04226768,168.22,168.18,5.98508536]
[1740179930515,0.04226768,168.22,168.18,0.03628536]
[1740179931120,0.04226768,168.22,168.18,5.98498536]
[1740179931812,0.04226768,168.22,168.18,0.03628536]
[1740179932017,0.04226768,168.22,168.19,5.9485]
[1740179933322,0.04226768,168.22,168.18,0.03628536]
[1740179934018,5.98996768,168.22,168.18,0.03628536]
[1740179935819,5.9482,168.2,168.18,0.03628536]
[1740179936023,1.78146768,168.22,168.18,0.03628536]
[1740179936416,1.78146768,168.22,168.2,5.948]
[1740179936620,1.78146768,168.22,168.18,0.03628536]
[1740179937023,1.78146768,168.22,168.18,5.98488536]
[1740179937523,5.9478,168.21,168.18,0.03628536]
[1740179937724,9.78254941,168.2,168.18,0.03628536]
[1740179939022,15.73074941,168.2,168.18,0.03628536]
[1740179939324,5.9482,168.2,168.18,0.03628536]
[1740179941825,11.56401709,168.22,168.18,0.03628536]
[1740179942429,5.9484,168.2,168.18,0.03628536]
[1740179943126,11.56401709,168.22,168.18,0.03628536]
[1740179944023,1.78146768,168.22,168.19,5.9482]
[1740179944220,1.78146768,168.22,168.18,0.03628536]
[1740179944424,7.72906768,168.22,168.18,0.03628536]
[1740179944623,1.78146768,168.22,168.19,5.9484]
[1740179944922,1.78146768,168.22,168.18,0.03628536]
[1740179945127,1.78146768,168.22,168.19,5.9483]
[1740179947127,0.04226768,168.22,168.2,5.9479]
[1740179948528,0.04226768,168.22,168.19,5.9483]
[1740179949128,0.04226768,168.22,168.18,0.03628536]
[1740179949327,0.04226768,168.22,168.2,5.948]
[1740179950029,0.04226768,168.22,168.18,5.98488536]
[1740179950231,0.04226768,168.22,168.18,0.03628536]
[1740179952133,5.9484,168.2,168.18,0.03628536]
[1740179952631,9.82481709,168.22,168.18,0.03628536]
[1740179953332,5.9485,168.19,168.18,0.03628536]
[1740179953629,9.82481709,168.22,168.18,0.03628536]
[1740179954131,5.9483,168.2,168.18,0.03628536]
[1740179954530,5.9478,168.21,168.18,0.03628536]
[1740179954827,0.04226768,168.22,168.18,0.03628536]
[1740179956130,0.04226768,168.22,168.2,5.9478]
[1740179957135,0.04226768,168.22,168.21,5.9478]
[1740179957427,6.67,168.29,168.21,9.78254941]
[1740179958624,0.04289683,168.27,168.23,5.98934614]
[1740179958835,0.04289683,168.27,168.23,0.04254614]
[1740179959434,0.04289683,168.27,168.23,9.82509555]
[1740179959632,0.04289683,168.27,168.26,5.946]
[1740179962133,1.8667,168.36,168.26,15.26192368]
[1740179962939,3.5218,168.39,168.26,15.26192368]
[1740179963139,0.03823291,168.33,168.29,15.30726268]
[1740179963339,0.03823291,168.33,168.32,5.9439]
[1740179964635,0.03823291,168.33,168.3,3.5824]
[1740179964836,0.03823291,168.33,168.31,5.9442]
[1740179965231,0.03823291,168.33,168.3,3.5824]
[1740179965438,0.03823291,168.33,168.29,0.045339]
[1740179967041,0.03823291,168.33,168.3,5.9446]
[1740179967242,0.03823291,168.33,168.29,0.045339]
[1740179967447,0.03823291,168.33,168.3,5.9443]
[1740179968040,0.03823291,168.33,168.29,0.045339]
[1740179969847,0.03823291,168.33,168.3,5.9443]
[1740179970145,0.03823291,168.33,168.29,0.045339]
[1740179970550,9.7,168.39,168.29,15.30726268]
[1740179970841,9.7,168.39,168.37,5.9419]
[1740179971049,9.7,168.39,168.3,3.6241]
[1740179971445,15.6414,168.39,168.3,3.6241]
[1740179971646,0.03929254,168.36,168.33,0.03977602]
[1740179972347,0.03929254,168.36,168.33,5.98307602]
[1740179972846,0.03929254,168.36,168.33,0.03977602]
[1740179973042,0.03929254,168.36,168.34,5.9432]
[1740179974540,0.03929254,168.36,168.33,0.03977602]
[1740179974743,0.03929254,168.36,168.35,5.9428]
[1740179975942,0.03929254,168.36,168.33,0.03977602]
[1740179977351,0.03929254,168.36,168.34,5.9429]
[1740179977651,0.03929254,168.36,168.33,0.03977602]
[1740179978651,0.03929254,168.36,168.33,5.98317602]
[1740179979448,0.03929254,168.36,168.34,5.9432]
[1740179980145,0.03929254,168.36,168.35,5.9428]
[1740179980146,9.254e-05,168.36,168.35,5.9428]
[1740179980748,9.254e-05,168.36,168.33,0.03977602]
[1740179982156,9.254e-05,168.36,168.33,5.98317602]
[1740179982355,9.254e-05,168.36,168.33,0.03977602]
[1740179982747,9.254e-05,168.36,168.35,5.9428]
[1740179990156,9.254e-05,168.36,168.34,1.8472]
[1740179990353,9.254e-05,168.36,168.33,0.03977602]
[1740179990956,5.9431,168.35,168.33,0.03977602]
[1740179991264,9.254e-05,168.36,168.33,0.03977602]
[1740179991655,5.9428,168.35,168.33,0.03977602]
[1740179992162,5.9432,168.34,168.33,0.03977602]
[1740180000367,9.254e-05,168.36,168.33,0.03977602]
[1740180000568,5.94279254,168.36,168.33,0.03977602]
[1740180001065,5.9432,168.34,168.33,0.03977602]
[1740180004367,15.26201622,168.36,168.25,5.9461]
[1740180004571,5.464,168.38,168.22,82.41884472]
[1740180004572,15.26192368,168.33,168.22,82.41884472]
[1740180005070,15.26192368,168.33,168.25,5.9461]
[1740180005462,5.9446,168.3,168.27,0.04516407]
[1740180005666,0.03974586,168.31,168.27,0.04516407]
[1740180006065,5.9448,168.3,168.27,0.04516407]
[1740180006271,0.03974586,168.31,168.27,0.04516407]
[1740180006770,5.9446,168.3,168.27,0.04516407]
[1740180007375,0.03974586,168.31,168.27,0.04516407]
[1740180007777,0.03974586,168.31,168.28,5.945]
[1740180008172,0.03974586,168.31,168.27,0.04516407]
[1740180010981,5.9453,168.28,168.27,0.04516407]
[1740180011679,5.9448,168.3,168.27,0.04516407]
[1740180011876,0.03974586,168.31,168.27,0.04516407]
[1740180012180,15.30166954,168.31,168.27,0.04516407]
[1740180013183,5.9453,168.28,168.27,0.04516407]
[1740180014879,5.9453,168.28,168.23,5.9468]
[1740180015083,5.9462,168.26,168.22,74.20035119]
[1740180015385,5.3244,168.3,168.22,74.20035119]
[1740180015584,5.9464,168.25,168.22,74.20035119]
[1740180016176,0.03833741,168.25,168.22,74.24055361]
[1740180016584,0.03833741,168.25,168.22,80.18775361]
[1740180016989,0.03833741,168.25,168.22,74.24055361]
[1740180017187,5.98473741,168.25,168.22,74.24055361]
[1740180017890,0.03833741,168.25,168.22,74.24055361]
[1740180018788,5.98473741,168.25,168.22,74.24055361]
[1740180019192,0.03833741,168.25,168.22,74.24055361]
[1740180019490,5.947,168.23,168.22,74.24055361]
[1740180019888,5.9468,168.24,168.22,74.24055361]
[1740180020090,0.03833741,168.25,168.22,74.24055361]
[1740180020289,0.03833741,168.25,168.22,0.04020242]
[1740180020987,5.947,168.23,168.22,0.04020242]
[1740180024592,1.7717,168.24,168.12,0.73108466]
[1740180024791,1.783,168.23,168.12,0.73108466]
[1740180024991,1.783,168.23,168.14,5.9502]
[1740180025188,1.783,168.23,168.12,0.73108466]
[1740180025686,0.03849872,168.19,168.16,0.04480454]
[1740180028490,5.9489,168.18,168.16,0.04480454]
[1740180028988,0.03849872,168.19,168.16,0.04480454]
[1740180029189,5.98699872,168.19,168.16,0.04480454]
[1740180030592,0.03849872,168.19,168.16,0.04480454]
[1740180031592,0.03849872,168.19,168.16,5.99420454]
[1740180031794,194.0,168.27,168.16,0.04480454]
[1740180031994,3.6742,168.3,168.17,1.8253]
[1740180032196,5.4532,168.3,168.17,1.8253]
[1740180032697,5.9462,168.26,168.2,5.948]
[1740180032994,5.4532,168.3,168.21,0.03806616]
[1740180033191,0.03976719,168.25,168.24,5.9467]
[1740180033397,5.4336,168.36,168.24,5.9467]
[1740180033593,5.4336,168.36,168.23,15.26192368]
[1740180034502,0.04212459,168.31,168.28,0.04039361]
[1740180036198,0.04212459,168.31,168.28,5.98559361]
[1740180036396,0.04212459,168.31,168.28,0.04039361]
[1740180036797,0.04212459,168.31,168.29,5.9447]
[1740180037199,0.04212459,168.31,168.28,0.04039361]
[1740180037405,0.04212459,168.31,168.3,5.9446]
[1740180037805,3.5925,168.4,168.29,15.26192368]
[1740180038104,1.7338,168.42,168.29,15.26192368]
[1740180038306,5.9412,168.4,168.29,15.26192368]
[1740180039106,0.04247989,168.36,168.33,0.0456894]
[1740180040198,0.04247989,168.36,168.35,5.9428]
[1740180041008,5.9399,168.44,168.37,5.9421]
[1740180041407,3.5925,168.46,168.32,15.26192368]
[1740180041605,0.9891073,168.45,168.32,15.26192368]
[1740180041902,3.5925,168.46,168.32,15.26192368]
[1740180042108,0.04520869,168.4,168.37,0.03808571]
[1740180044303,5.9414,168.39,168.37,0.03808571]
[1740180045114,0.04520869,168.4,168.37,5.98008571]
[1740180045310,0.04520869,168.4,168.37,0.03808571]
[1740180046215,5.98650869,168.4,168.37,0.03808571]
[1740180046514,0.04520869,168.4,168.37,0.03808571]
[1740180048811,0.04520869,168.4,168.39,5.9414]
[1740180049015,0.04520869,168.4,168.37,0.03808571]
[1740180049612,5.98630869,168.4,168.37,0.03808571]
[1740180050413,0.04520869,168.4,168.37,0.03808571]
[1740180054710,0.04520869,168.4,168.39,5.9414]
[1740180055217,8.19,168.45,168.43,5.94]
[1740180055514,5.9383,168.48,168.43,5.94]
[1740180055816,18.93892368,168.53,168.38,15.26192368]
[1740180056018,3.677,168.53,168.38,15.26192368]
[1740180056312,5.98272653,168.47,168.44,0.03760697]
[1740180056618,0.04402653,168.47,168.44,0.03760697]
[1740180058017,5.98282653,168.47,168.44,0.03760697]
[1740180058318,0.04402653,168.47,168.44,0.03760697]
[1740180059510,5.98272653,168.47,168.44,0.03760697]
[1740180059919,5.939,168.46,168.44,0.03760697]
[1740180060220,0.04402653,168.47,168.44,0.03760697]
[1740180069821,5.9391,168.46,168.44,0.03760697]
[1740180070913,15.30595021,168.47,168.37,127.06]
[1740180071124,15.26192368,168.47,168.37,127.06]
[1740180072223,5.97894389,168.44,168.4,0.04378572]
[1740180072926,0.03934389,168.44,168.4,0.04378572]
[1740180074118,0.03934389,168.44,168.4,5.98478572]
[1740180074423,0.03934389,168.44,168.4,0.04378572]
[1740180075423,5.97894389,168.44,168.4,0.04378572]
[1740180076929,0.03934389,168.44,168.4,0.04378572]
[1740180077127,0.03934389,168.44,168.4,5.98478572]
[1740180077429,0.03934389,168.44,168.4,0.04378572]
[1740180078429,0.03934389,168.44,168.43,5.94]
[1740180079427,0.03934389,168.44,168.41,3.5886]
[1740180080219,0.03934389,168.44,168.42,5.9403]
[1740180081326,0.03934389,168.44,168.41,9.529]
[1740180081527,0.03934389,168.44,168.41,3.5886]
[1740180083529,0.03934389,168.44,168.42,5.9403]
[1740180085827,0.03934389,168.44,168.41,3.5886]
[1740180086027,0.03934389,168.44,168.43,5.94]
[1740180087529,5.9369,168.52,168.46,5.9386]
[1740180088528,0.0450616,168.51,168.47,0.03839117]
[1740180088832,0.0450616,168.51,168.48,15.26192368]
[1740180089034,0.0450616,168.51,168.49,1.7851]
[1740180089223,0.0450616,168.51,168.5,5.9375]
[1740180089933,1.796,168.61,168.49,1.7851]
[1740180090335,1.796,168.61,168.51,15.26192368]
[1740180091135,0.04420226,168.58,168.54,0.04198086]
[1740180091638,5.9353,168.57,168.54,0.04198086]
[1740180091829,0.04420226,168.58,168.54,0.04198086]
[1740180093032,0.04420226,168.58,168.55,5.9355]
[1740180093236,0.04420226,168.58,168.54,15.30390454]
[1740180093537,0.04420226,168.58,168.55,5.9357]
[1740180093737,0.04420226,168.58,168.54,15.30390454]
[1740180094338,0.04420226,168.58,168.56,5.9351]
[1740180094541,0.04420226,168.58,168.54,15.30390454]
[1740180094933,0.04420226,168.58,168.56,5.9351]
[1740180095536,0.04420226,168.58,168.57,5.9351]
[1740180096334,0.04420226,168.58,168.54,15.30390454]
[1740180096335,0.04420226,168.58,168.54,0.04198086]
[1740180098147,5.97910226,168.58,168.54,0.04198086]
[1740180098642,0.04420226,168.58,168.54,0.04198086]
[1740180099145,5.9354,168.56,168.54,0.04198086]
[1740180100040,0.04420226,168.58,168.54,0.04198086]
[1740180101846,5.9358,168.55,168.54,0.04198086]
[1740180102945,5.9369,168.52,168.48,5.9382]
[1740180103341,5.3591,168.6,168.48,5.9382]
[1740180103543,5.9375,168.51,168.47,5.9385]